fUST/lending_fUST_20250707
["ID","MTS","AMOUNT","RATE_DAILY","PERIOD"]
[370058690,1751869861769,-531.7187273,0.00021399,2]
[370058691,1751869861779,-540.96,0.00021399,2]
[370058692,1751869861787,-703.74,0.00021399,2]
[370058693,1751869861796,-542.74,0.000214,2]
[370058694,1751869861806,-298.3,0.00021401,2]
[370058695,1751869861815,-530.47,0.00021401,2]
[370058696,1751869861824,-1015.5,0.00021401,2]
[370058697,1751869861833,-1519.51,0.00021401,2]
[370058698,1751869861843,-489.01,0.00021401,2]
[370058699,1751869861851,-460.0,0.00021401,2]
[370058700,1751869861861,-727.81,0.00021401,2]
[370058701,1751869861871,-500.0,0.00021527,2]
[370058702,1751869861880,-1596.4699133,0.00021555,5]
[370058703,1751869861890,-460.0,0.00021673,2]
[370058704,1751869861899,-831.93,0.00021673,2]
[370058705,1751869861908,-846.06,0.00021673,2]
[370058706,1751869861917,-460.0,0.00021673,2]
[370058707,1751869861926,-540.96,0.00021673,2]
[370058708,1751869861935,-703.74,0.00021673,2]
[370058709,1751869861944,-542.74,0.00021674,2]
[370058710,1751869861953,-530.47,0.00021675,2]
[370058711,1751869861962,-1015.5,0.00021675,2]
[370058712,1751869861971,-1519.51,0.00021675,2]
[370058713,1751869861980,-489.01,0.00021675,2]
[370058714,1751869861989,-460.0,0.00021675,2]
[370058715,1751869861998,-727.81,0.00021675,2]
[370058716,1751869862007,-9184.56862855,0.00021699,2]
[370058717,1751869862017,-2400.0,0.00021733,2]
[370058718,1751869862026,-1596.4699133,0.00021797,6]
[370058719,1751869862036,-1941.79,0.000218,2]
[370058720,1751869862045,-223.72,0.0002182,2]
[370058721,1751869862054,-500.0,0.00021918,2]
[370058722,1751869862063,-500.0,0.00021918,2]
[370058723,1751869862073,-452.78601573,0.00021918,2]
[370058724,1751869862082,-500.0,0.00021918,2]
[370058725,1751869862092,-460.0,0.00021947,2]
[370058726,1751869862102,-831.93,0.00021947,2]
[370058727,1751869862111,-846.06,0.00021947,2]
[370058728,1751869862124,-356.48215504,0.00021947,2]
[370058729,1751869862134,-540.96,0.00021947,2]
[370058730,1751869862144,-703.74,0.00021947,2]
[370058731,1751869862153,-542.74,0.00021948,2]
[370058732,1751869862163,-530.47,0.00021949,2]
[370058733,1751869862172,-1015.5,0.00021949,2]
[370058734,1751869862182,-1519.51,0.00021949,2]
[370058735,1751869862192,-489.01,0.00021949,2]
[370058736,1751869862202,-460.0,0.00021949,2]
[370058737,1751869862211,-727.81,0.00021949,2]
[370058738,1751869862222,-133768.55,0.00022,2]
[370058739,1751869862231,-848.27993403,0.00022,7]
[370058740,1751869862241,-52703.04,0.00022,7]
[370058741,1751869862250,-214.06929976,0.00022,7]
[370058742,1751869862260,-4000.61,0.00022,7]
[370058743,1751869862275,-13548.83914033,0.00022,2]
[370058744,1751869862286,-352.20133888,0.00022,2]
[370058745,1751869862295,-20120.40074165,0.00022,2]
[370058746,1751869862305,-549.71718887,0.00022,2]
[370058747,1751869862314,-36049.16079695,0.00022,2]
[370058748,1751869862323,-524.98484073,0.00022,7]
[370058749,1751869862333,-1596.4699133,0.00022038,6]
[370058750,1751869862343,-823.0,0.00022168,2]
[370058751,1751869862353,-283.18,0.00022221,2]
[370058752,1751869862362,-831.93,0.00022221,2]
[370058753,1751869862373,-846.06,0.00022221,2]
[370058754,1751869862447,-540.96,0.00022221,2]
[370058755,1751869862456,-703.74,0.00022221,2]
[370058756,1751869862466,-542.74,0.00022222,2]
[370058757,1751869862475,-530.47,0.00022223,2]
[370058758,1751869862485,-1015.5,0.00022223,2]
[370058759,1751869862495,-1519.51,0.00022223,2]
[370058760,1751869862504,-489.01,0.00022223,2]
[370058761,1751869862514,-460.0,0.00022223,2]
[370058762,1751869862523,-727.81,0.00022223,2]
[370058763,1751869862533,-1596.4699133,0.00022279,6]
[370058764,1751869862542,-3000.0,0.00022281,2]
[370058765,1751869862552,-176.92021242,0.00022483,2]
[370058766,1751869862562,-130467.78417314,0.0002249,7]
[370058767,1751869862572,-831.93,0.00022495,2]
[370058768,1751869862581,-846.06,0.00022495,2]
[370058769,1751869862591,-540.96,0.00022495,2]
[370058770,1751869862602,-703.74,0.00022495,2]
[370058771,1751869862612,-542.74,0.00022496,2]
[370058772,1751869862624,-530.47,0.00022497,2]
[370058773,1751869862633,-1015.5,0.00022497,2]
[370058774,1751869862643,-1519.51,0.00022497,2]
[370058775,1751869862653,-489.01,0.00022497,2]
[370058776,1751869862664,-460.0,0.00022497,2]
[370058777,1751869862675,-727.81,0.00022497,2]
[370058778,1751869862687,-1005.08652503,0.000225,2]
[370058779,1751869862698,-1596.4699133,0.00022521,7]
[370058780,1751869862708,-349.684988,0.00022603,2]
[370058781,1751869862719,-2408.04,0.0002261,6]
[370058782,1751869862731,-150.0,0.00022619,2]
[370058783,1751869862741,-2408.04,0.0002271,7]
[370058784,1751869862750,-1596.4699133,0.00022762,7]
[370058785,1751869862761,-831.93,0.00022769,2]
[370058786,1751869862772,-846.06,0.00022769,2]
[370058787,1751869862782,-540.96,0.00022769,2]
[370058788,1751869862792,-703.74,0.00022769,2]
[370058789,1751869862803,-542.74,0.0002277,2]
[370058790,1751869862813,-1038.00452864,0.0002277,2]
[370058791,1751869862823,-530.47,0.00022771,2]
[370058792,1751869862833,-1015.5,0.00022771,2]
[370058793,1751869862843,-1519.51,0.00022771,2]
[370058794,1751869862853,-489.01,0.00022771,2]
[370058795,1751869862865,-256.39,0.00022771,2]
[370058796,1751869862874,-727.81,0.00022771,2]
[370058797,1751869862883,-300.75601727,0.00022802,2]
[370058798,1751869862894,-2408.04,0.0002281,3]
[370058799,1751869862903,-208.07560296,0.00022829,2]
[370058800,1751869862913,-2408.04,0.0002291,2]
[370058801,1751869862923,-97894.04805221,0.00022919,2]
[370058802,1751869862932,-158.86129796,0.00023,10]
[370058803,1751869862943,-133768.55,0.00023,2]
[370058804,1751869862954,-52703.04,0.00023,7]
[370058805,1751869862964,-1941.79,0.00023,7]
[370058806,1751869862974,-160.0,0.00023,2]
[370058807,1751869862985,-524.98484073,0.00023,7]
[370058808,1751869862995,-330.67695274,0.00023,2]
[370058809,1751869863005,-1596.4699133,0.00023003,8]
[370058810,1751869863014,-2408.04,0.0002301,6]
[370058811,1751869863024,-831.93,0.00023043,2]
[370058812,1751869863034,-846.06,0.00023043,2]
[370058813,1751869863045,-540.96,0.00023043,2]
[370058814,1751869863054,-703.74,0.00023043,2]
[370058815,1751869863068,-542.74,0.00023044,2]
[370058816,1751869863078,-530.47,0.00023045,2]
[370058817,1751869863087,-1015.5,0.00023045,2]
[370058818,1751869863096,-1519.51,0.00023045,2]
[370058819,1751869863106,-489.01,0.00023045,2]
[370058820,1751869863115,-727.81,0.00023045,2]
[370058821,1751869863125,-257.1368864,0.000231,2]
[370058822,1751869863134,-4000.61,0.000231,7]
[370058823,1751869863145,-2408.04,0.0002311,3]
[370058824,1751869863155,-2408.04,0.0002321,3]
[370058825,1751869863164,-1596.4699133,0.00023245,8]
[370058826,1751869863173,-161.50260008,0.0002329,4]
[370058827,1751869863183,-161.50260008,0.0002329,4]
[370058828,1751869863192,-161.50260008,0.0002329,4]
[370058829,1751869863202,-161.5,0.0002329,4]
[370058830,1751869863211,-150.73576007,0.0002329,4]
[370058831,1751869863221,-150.73576007,0.0002329,4]
[370058832,1751869863232,-150.73576007,0.0002329,4]
[370058833,1751869863242,-150.73576007,0.0002329,4]
[370058834,1751869863251,-150.73576007,0.0002329,4]
[370058835,1751869863260,-150.73576007,0.0002329,4]
[370058836,1751869863270,-150.73576007,0.0002329,4]
[370058837,1751869863279,-150.73576007,0.0002329,4]
[370058838,1751869863289,-150.73576007,0.0002329,4]
[370058839,1751869863298,-150.73,0.0002329,4]
[370058840,1751869863308,-163.16488152,0.0002329,4]
[370058841,1751869863317,-163.16,0.0002329,4]
[370058842,1751869863327,-837.79946008,0.000233,3]
[370058843,1751869863336,-2408.04,0.0002331,4]
[370058844,1751869863351,-831.97899759,0.00023316,2]
[370058845,1751869863361,-846.2268275,0.00023316,2]
[370058846,1751869863372,-540.99,0.00023316,2]
[370058847,1751869863381,-703.74,0.00023316,2]
[370058848,1751869863391,-542.9,0.00023318,2]
[370058849,1751869863400,-530.47,0.00023319,2]
[370058850,1751869863410,-1015.56,0.00023319,2]
[370058851,1751869863420,-1519.51,0.00023319,2]
[370058852,1751869863430,-489.01,0.00023319,2]
[370058853,1751869863440,-727.95158375,0.00023319,2]
[370058854,1751869863449,-257.13688636,0.00023341,2]
[370058855,1751869863459,-127857.75439241,0.00023364,2]
[370058856,1751869863468,-150.0,0.00023373,2]
[370058857,1751869863477,-2408.04,0.0002341,5]
[370058858,1751869863488,-595.88612471,0.00023442,2]
[370058859,1751869863498,-2383.54449884,0.00023442,2]
[370058860,1751869863507,-584.04093207,0.00023442,2]
[370058861,1751869863516,-151.0,0.00023442,7]
[370058862,1751869863526,-207.4,0.00023442,2]
[370058863,1751869863535,-5000.0,0.00023442,2]
[370058864,1751869863545,-500.0,0.00023442,2]
[370058865,1751869863554,-500.0,0.00023442,2]
[370058866,1751869863564,-500.0,0.00023442,2]
[370058867,1751869863574,-690.642,0.00023442,2]
[370058868,1751869863584,-500.0,0.00023442,2]
[370058869,1751869863593,-500.0,0.00023442,2]
[370058870,1751869863602,-500.0,0.00023442,2]
[370058871,1751869863677,-500.0,0.00023442,2]
[370058872,1751869863687,-500.0,0.00023442,2]
[370058873,1751869863696,-1500.0,0.00023442,2]
[370058874,1751869863706,-500.0,0.00023442,2]
[370058875,1751869863715,-1500.0,0.00023442,2]
[370058876,1751869863724,-500.0,0.00023442,2]
[370058877,1751869863733,-1500.0,0.00023442,2]
[370058878,1751869863743,-500.0,0.00023442,2]
[370058879,1751869863752,-1500.0,0.00023442,2]
[370058880,1751869863761,-1500.0,0.00023442,2]
[370058881,1751869863770,-1500.0,0.00023442,2]
[370058882,1751869863780,-1500.0,0.00023442,2]
[370058883,1751869863789,-1500.0,0.00023442,2]
[370058884,1751869863798,-1500.0,0.00023442,2]
[370058885,1751869863808,-1500.0,0.00023442,2]
[370058886,1751869863817,-1500.0,0.00023442,2]
[370058887,1751869863828,-151.0,0.00023442,2]
[370058888,1751869863838,-151.0,0.00023442,2]
[370058889,1751869863848,-1596.4699133,0.00023486,9]
[370058890,1751869863859,-716.195754,0.00023497,2]
[370058891,1751869863868,-151.0,0.00023498,7]
[370058892,1751869863878,-599.0,0.00023502,2]
[370058893,1751869863887,-2408.04,0.0002351,3]
[370058894,1751869863897,-742.6949969,0.00023552,2]
[370058895,1751869863907,-257.13688636,0.00023581,2]
[370058896,1751869863916,-530.68133444,0.00023593,2]
[370058897,1751869863925,-1519.71377952,0.00023593,2]
[370058898,1751869863935,-489.16511228,0.00023593,2]
[370058899,1751869863945,-160.0,0.000236,3]
[370058900,1751869863954,-160.0,0.000236,3]
[370058901,1751869863964,-848.27993403,0.000236,3]
[370058902,1751869863973,-214.06929976,0.000236,3]
[370058903,1751869863983,-215.21338352,0.000236,3]
[370058904,1751869863992,-12584.46609586,0.000236,3]
[370058905,1751869864002,-160.0,0.000236,3]
[370058906,1751869864012,-524.98484073,0.000236,3]
[370058907,1751869864022,-770.17471178,0.00023607,2]
[370058908,1751869864031,-2408.04,0.0002361,2]
[370058909,1751869864041,-798.67117612,0.00023662,2]
[370058910,1751869864050,-298.6722793,0.00023699,2]
[370058911,1751869864061,-180.7420961,0.00023699,2]
[370058912,1751869864072,-2408.04,0.0002371,4]
[370058913,1751869864082,-828.22200964,0.00023717,2]
[370058914,1751869864092,-500.0,0.00023719,2]
[370058915,1751869864101,-1596.4699133,0.00023728,9]
[370058916,1751869864111,-858.86622399,0.00023772,2]
[370058917,1751869864120,-2408.04,0.0002381,4]
[370058918,1751869864130,-257.13688636,0.00023822,2]
[370058919,1751869864139,-624.1046841,0.00023827,2]
[370058920,1751869864148,-599.0,0.00023845,2]
[370058921,1751869864158,-150.0,0.000239,2]
[370058922,1751869864168,-2408.04,0.0002391,3]
[370058923,1751869864177,-300.0,0.00023921,2]
[370058924,1751869864187,-5357.61214726,0.0002393,2]
[370058925,1751869864196,-2333.82756455,0.00023934,2]
[370058926,1751869864206,-1596.4699133,0.00023969,10]
[370058927,1751869864216,-5000.0,0.0002399,2]
[370058928,1751869864225,-1000.0,0.00024,24]
[370058929,1751869864235,-160.0,0.00024,7]
[370058930,1751869864244,-133768.55,0.00024,2]
[370058931,1751869864254,-52703.04,0.00024,7]
[370058932,1751869864263,-215.21338352,0.00024,7]
[370058933,1751869864273,-160.0,0.00024,7]
[370058934,1751869864282,-837.79946008,0.00024,7]
[370058935,1751869864292,-2408.04,0.0002401,3]
[370058936,1751869864301,-165.91991477,0.00024027,2]
[370058937,1751869864310,-257.13688636,0.00024063,2]
[370058938,1751869864320,-2408.04,0.0002411,6]
[370058939,1751869864330,-599.0,0.00024139,2]
[370058940,1751869864339,-4000.61,0.000242,7]
[370058941,1751869864348,-1941.79,0.000242,7]
[370058942,1751869864358,-599.0,0.00024204,2]
[370058943,1751869864367,-2408.04,0.0002421,7]
[370058944,1751869864377,-1596.4699133,0.0002421,10]
[370058945,1751869864387,-495.0,0.00024212,2]
[370058946,1751869864396,-599.0,0.00024295,2]
[370058947,1751869864406,-257.13688636,0.00024303,2]
[370058948,1751869864415,-2408.04,0.0002431,3]
[370058949,1751869864425,-165.91991477,0.00024329,2]
[370058950,1751869864435,-599.0,0.00024354,2]
[370058951,1751869864444,-151.0,0.00024363,7]
[370058952,1751869864455,-3967.07919496,0.0002439,2]
[370058953,1751869864464,-2408.04,0.0002441,3]
[370058954,1751869864474,-366.6942869,0.00024411,2]
[370058955,1751869864483,-869.1770836,0.00024411,2]
[370058956,1751869864492,-223.6670826,0.00024411,2]
[370058957,1751869864502,-1596.4699133,0.00024452,11]
[370058958,1751869864511,-450.0,0.00024468,2]
[370058959,1751869864520,-9781.80335578,0.000245,2]
[370058960,1751869864530,-200.0,0.000245,2]
[370058961,1751869864539,-599.0,0.00024507,2]
[370058962,1751869864548,-2408.04,0.0002451,5]
[370058963,1751869864558,-5000.0,0.00024538,2]
[370058964,1751869864567,-257.13688636,0.00024544,2]
[370058965,1751869864576,-512.7884035,0.00024568,2]
[370058966,1751869864586,-2408.04,0.0002461,3]
[370058967,1751869864596,-501.10567785,0.0002465,2]
[370058968,1751869864606,-76028.12985717,0.0002465,2]
[370058969,1751869865047,-330.85826451,0.00017015,2]
[370058970,1751869865059,-129.14173549,0.00017015,2]
[370058971,1751869865072,-472.04316484,0.00017015,2]
[370058972,1751869865082,-500.0,0.00017015,2]
[370058973,1751869865091,-272.56160442,0.00017016,2]
[370058974,1751869865105,-229.34082658,0.00017016,2]
[370058975,1751869865124,-460.0,0.00017017,2]
[370058976,1751869865141,-460.0,0.00017017,2]
[370058977,1751869865160,-465.75154637,0.00017289,2]
[370058978,1751869865179,-450.43,0.00017291,2]
[370058979,1751869865196,-1100.86,0.00017563,2]
[370058980,1751869865215,-460.0,0.00017564,2]
[370058981,1751869865230,-1100.86,0.00017837,2]
[370058982,1751869865245,-460.0,0.00017838,2]
[370058983,1751869865263,-1100.86,0.00018111,2]
[370058984,1751869865285,-460.0,0.00018112,2]
[370058985,1751869865299,-1100.86,0.00018385,2]
[370058986,1751869865318,-460.0,0.00018386,2]
[370058987,1751869865333,-1100.86,0.00018659,2]
[370058988,1751869865350,-1100.86,0.00018933,2]
[370058989,1751869865365,-1100.86,0.00019207,2]
[370058990,1751869865381,-160.0,0.0001929,2]
[370058991,1751869865398,-1100.86,0.00019481,2]
[370058992,1751869865413,-1100.86,0.00019755,2]
[370058993,1751869865428,-1100.86,0.00020029,2]
[370058994,1751869865448,-1100.86,0.00020303,2]
[370058995,1751869865462,-1100.86,0.00020577,2]
[370058996,1751869865477,-1100.86,0.00020851,2]
[370058997,1751869865492,-1100.86,0.00021125,2]
[370058998,1751869865506,-1100.86,0.00021399,2]
[370058999,1751869865515,-1100.86,0.00021673,2]
[370059000,1751869865525,-1100.86,0.00021947,2]
[370059001,1751869865534,-1100.86,0.00022221,2]
[370059002,1751869865543,-1100.86,0.00022495,2]
[370059003,1751869865553,-1100.86,0.00022769,2]
[370059004,1751869865562,-1100.86,0.00023043,2]
[370059005,1751869865571,-1101.04400077,0.00023316,2]
[370059006,1751869865580,-151.0,0.00023442,2]
[370059007,1751869865590,-151.0,0.00023442,2]
[370059008,1751869865600,-10307.20379395,0.0002465,2]
[370059009,1751869865609,-76980.98637407,0.00024651,2]
[370059010,1751869865619,-151.0,0.00024651,7]
[370059011,1751869865628,-151.0,0.00024651,7]
[370059012,1751869865637,-151.0,0.00024651,7]
[370059013,1751869865647,-151.0,0.00024651,7]
[370059014,1751869865656,-300.0,0.00024657,4]
[370059015,1751869865666,-300.0,0.00024657,4]
[370059016,1751869865675,-300.0,0.00024657,4]
[370059017,1751869865685,-300.0,0.00024657,4]
[370059018,1751869865695,-300.0,0.00024657,4]
[370059019,1751869865704,-300.0,0.00024657,4]
[370059020,1751869865713,-327.85232221,0.00024657,4]
[370059021,1751869865723,-200.0,0.00024657,2]
[370059022,1751869865732,-210.00855503,0.00024657,2]
[370059023,1751869865741,-150.0,0.00024658,2]
[370059024,1751869865970,-380.0,0.00024658,2]
[370059025,1751869865981,-165.91991477,0.00024658,2]
[370059026,1751869865991,-1596.4699133,0.00024693,11]
[370059027,1751869866000,-151.0,0.00024696,7]
[370059028,1751869866009,-2408.04,0.0002471,2]
[370059029,1751869866019,-447.69928345,0.00024715,2]
[370059030,1751869866028,-800.0,0.00024736,2]
[370059031,1751869866038,-800.0,0.00024761,2]
[370059032,1751869866047,-257.13688636,0.00024785,2]
[370059033,1751869866056,-151.0,0.000248,7]
[370059034,1751869866066,-151.0,0.000248,7]
[370059035,1751869866075,-151.284023,0.000248,7]
[370059036,1751869866084,-151.0,0.000248,7]
[370059037,1751869866093,-151.0,0.000248,7]
[370059038,1751869866102,-151.655014,0.000248,7]
[370059039,1751869866111,-151.0,0.000248,7]
[370059040,1751869866122,-196.196642,0.000248,7]
[370059041,1751869866132,-214804.214776,0.000248,2]
[370059042,1751869866141,-132527.54207327,0.000248,7]
[370059043,1751869866150,-151.0,0.000248,7]
[370059044,1751869866160,-152.061492,0.000248,7]
[370059045,1751869866169,-2408.04,0.0002481,6]
[370059046,1751869866178,-215.0738,0.00024811,2]
[370059047,1751869866188,-1983.580973,0.00024835,4]
[370059048,1751869866197,-501.47796475,0.00024873,2]
[370059049,1751869866206,-10969.50501138,0.000249,2]
[370059050,1751869866216,-40138.32451115,0.000249,2]
[370059051,1751869866226,-151.0,0.000249,7]
[370059052,1751869866236,-151.0,0.000249,7]
[370059053,1751869866245,-318.0,0.000249,3]
[370059054,1751869866254,-318.0,0.000249,3]
[370059055,1751869866263,-327.19916999,0.000249,3]
[370059056,1751869866272,-151.0,0.000249,7]
[370059057,1751869866282,-151.0,0.000249,7]
[370059058,1751869866291,-151.0,0.000249,7]
[370059059,1751869866300,-212.578992,0.000249,7]
[370059060,1751869866310,-212.578992,0.000249,7]
[370059061,1751869866319,-151.0,0.000249,7]
[370059062,1751869866328,-151.0,0.000249,7]
[370059063,1751869866338,-151.0,0.000249,7]
[370059064,1751869866347,-164.5101,0.000249,7]
[370059065,1751869866357,-151.0,0.000249,7]
[370059066,1751869866366,-151.0,0.000249,7]
[370059067,1751869866376,-156.981728,0.000249,7]
[370059068,1751869866385,-653.10158878,0.000249,2]
[370059069,1751869866395,-151.0,0.000249,7]
[370059070,1751869866404,-151.0,0.000249,7]
[370059071,1751869866413,-151.0,0.000249,7]
[370059072,1751869866423,-151.0,0.000249,7]
[370059073,1751869866433,-151.0,0.000249,7]
[370059074,1751869866444,-151.0,0.000249,7]
[370059075,1751869866453,-151.0,0.000249,7]
[370059076,1751869866463,-151.0,0.000249,7]
[370059077,1751869866473,-151.0,0.000249,7]
[370059078,1751869866482,-534.779106,0.000249,7]
[370059079,1751869866492,-269.920325,0.000249,7]
[370059080,1751869866501,-534.779106,0.000249,7]
[370059081,1751869866511,-269.920325,0.000249,7]
[370059082,1751869866520,-151.0,0.000249,7]
[370059083,1751869866530,-151.0,0.000249,7]
[370059084,1751869866539,-176.902646,0.000249,7]
[370059085,1751869866549,-194.591617,0.000249,7]
[370059086,1751869866558,-176.902646,0.000249,7]
[370059087,1751869866567,-194.591617,0.000249,7]
[370059088,1751869866576,-151.0,0.000249,7]
[370059089,1751869866586,-151.0,0.000249,7]
[370059090,1751869866595,-151.0,0.000249,7]
[370059091,1751869866605,-151.0,0.000249,7]
[370059092,1751869866616,-151.0,0.000249,7]
[370059093,1751869866626,-150990.89112433,0.000249,2]
[370059094,1751870018142,240.49438796,0.0001675,2]
[370059096,1751870477958,-321.87,0.00016906,3]
[370059097,1751870528529,158.4270981,0.00015912,2]
[370059098,1751870595871,-70.67,0.00016906,3]
[370059099,1751870595897,-196.27,0.00016906,3]
[370059100,1751870595921,-588.82,0.00016906,3]
[370059101,1751870595947,-300.0,0.00016909,2]
[370059102,1751870595971,-31841.50312108,0.0001691,2]
[370059103,1751870595994,-430.72743782,0.0001691,2]
[370059104,1751870596018,-500.0,0.0001691,2]
[370059105,1751870596053,-640.59238168,0.0001691,2]
[370059106,1751870596080,-501.56660507,0.0001691,2]
[370059107,1751870596105,-500.0,0.0001691,2]
[370059108,1751870596128,-500.0,0.0001691,2]
[370059109,1751870596152,-500.0,0.0001691,2]
[370059110,1751870596175,-500.0,0.0001691,2]
[370059111,1751870596199,-500.0,0.0001691,2]
[370059112,1751870596222,-500.0,0.0001691,2]
[370059113,1751870596246,-500.0,0.0001691,2]
[370059114,1751870596269,-500.0,0.0001691,2]
[370059115,1751870596292,-500.0,0.0001691,2]
[370059116,1751870596316,-507.34072593,0.0001691,2]
[370059117,1751870596339,-500.0,0.0001691,2]
[370059118,1751870596363,-500.0,0.0001691,2]
[370059119,1751870596387,-500.0,0.0001691,2]
[370059120,1751870596411,-535.41686534,0.0001691,2]
[370059121,1751870596436,-500.0,0.0001691,2]
[370059122,1751870596463,-500.0,0.0001691,2]
[370059123,1751870596487,-500.0,0.0001691,2]
[370059124,1751870596510,-500.0,0.0001691,2]
[370059125,1751870596536,-500.0,0.0001691,2]
[370059126,1751870596561,-500.0,0.0001691,2]
[370059127,1751870596585,-500.0,0.0001691,2]
[370059128,1751870596608,-500.0,0.0001691,2]
[370059129,1751870596631,-510.62899164,0.0001691,2]
[370059130,1751870596654,-500.0,0.0001691,2]
[370059131,1751870596679,-500.0,0.0001691,2]
[370059132,1751870596703,-500.0,0.0001691,2]
[370059133,1751870596727,-500.0,0.0001691,2]
[370059134,1751870596751,-500.0,0.0001691,2]
[370059135,1751870596774,-500.0,0.0001691,2]
[370059136,1751870596798,-500.0,0.0001691,2]
[370059137,1751870596822,-500.0,0.0001691,2]
[370059138,1751870596846,-500.0,0.0001691,2]
[370059139,1751870596868,-179.00791369,0.0001691,2]
[370059140,1751870596891,-500.0,0.0001691,2]
[370059141,1751870596914,-500.0,0.0001691,2]
[370059142,1751870596938,-500.0,0.0001691,2]
[370059143,1751870596963,-500.0,0.0001691,2]
[370059144,1751870596987,-500.0,0.0001691,2]
[370059145,1751870597011,-500.0,0.0001691,2]
[370059146,1751870597034,-500.0,0.0001691,2]
[370059147,1751870597059,-500.0,0.0001691,2]
[370059148,1751870597083,-500.0,0.0001691,2]
[370059149,1751870597107,-500.0,0.0001691,2]
[370059150,1751870597130,-500.0,0.0001691,2]
[370059151,1751870597154,-500.0,0.0001691,2]
[370059152,1751870597179,-217.10572958,0.0001691,2]
[370059153,1751870597204,-500.0,0.0001691,2]
[370059154,1751870597227,-500.0,0.0001691,2]
[370059155,1751870597252,-500.0,0.0001691,2]
[370059156,1751870597276,-500.0,0.0001691,2]
[370059157,1751870597299,-480.0,0.0001691,2]
[370059158,1751870597323,-1200.0,0.0001691,2]
[370059159,1751870597346,-460.0,0.00016911,2]
[370059160,1751870597368,-460.0,0.00016911,2]
[370059161,1751870597390,-460.0,0.00016911,2]
[370059162,1751870597412,-460.0,0.00016911,2]
[370059163,1751870597441,-460.0,0.00016911,2]
[370059164,1751870597466,-460.0,0.00016911,2]
[370059165,1751870597489,-460.0,0.00016911,2]
[370059166,1751870597513,-460.0,0.00016911,2]
[370059167,1751870597536,-460.0,0.00016911,2]
[370059168,1751870597561,-333.37503541,0.00016911,2]
[370059169,1751870597584,-460.0,0.00016911,2]
[370059170,1751870597609,-460.0,0.00016911,2]
[370059171,1751870597632,-460.0,0.00016911,2]
[370059172,1751870597657,-465.65196846,0.00016911,2]
[370059173,1751870597680,-460.0,0.00016911,2]
[370059174,1751870597703,-460.0,0.00016911,2]
[370059175,1751870597726,-460.0,0.00016911,2]
[370059176,1751870597749,-460.0,0.00016911,2]
[370059177,1751870597772,-460.0,0.00016911,2]
[370059178,1751870597795,-460.0,0.00016911,2]
[370059179,1751870597818,-460.0,0.00016911,2]
[370059180,1751870597840,-460.0,0.00016911,2]
[370059181,1751870597863,-460.0,0.00016911,2]
[370059182,1751870597885,-427.94399011,0.00016911,2]
[370059183,1751870597907,-460.0,0.00016911,2]
[370059184,1751870597931,-884.88,0.00016911,2]
[370059185,1751870597954,-460.0,0.00016911,2]
[370059186,1751870597976,-460.0,0.00016911,2]
[370059187,1751870597999,-460.0,0.00016911,2]
[370059188,1751870598021,-460.0,0.00016911,2]
[370059189,1751870598044,-396.88638111,0.00016911,2]
[370059190,1751870598209,-460.0,0.00016911,2]